fUST/lending_fUST_20260113
["ID","MTS","AMOUNT","RATE_DAILY","PERIOD"]
[401493697,1768267844355,-303.10001603,0.00019089,2]
[401493699,1768267844365,-156.51,0.000192,2]
[401493701,1768267844374,-3217.64,0.000192,2]
[401493703,1768267844383,-17700.54,0.000192,2]
[401493705,1768267844392,-500.0,0.00019213,2]
[401493707,1768267844401,-500.0,0.00019213,2]
[401493709,1768267844411,-500.0,0.00019213,2]
[401493711,1768267844421,-500.0,0.00019213,2]
[401493713,1768267844432,-500.0,0.00019213,2]
[401493715,1768267844441,-500.0,0.00019213,2]
[401493717,1768267844452,-500.0,0.00019213,2]
[401493719,1768267844462,-500.0,0.00019213,2]
[401493721,1768267844474,-500.0,0.00019213,2]
[401493723,1768267844483,-500.0,0.00019213,2]
[401493725,1768267844493,-500.0,0.00019213,2]
[401493726,1768267844509,-500.0,0.00019213,2]
[401493728,1768267844519,-364.86992356,0.00019213,2]
[401493730,1768267844528,-728.0,0.0001924,2]
[401493732,1768267844538,-2000.0,0.00019259,7]
[401493734,1768267844548,-303.10001603,0.00019278,2]
[401493736,1768267844557,-617.40005154,0.0001934,2]
[401493738,1768267844567,-728.0,0.00019422,2]
[401493740,1768267844576,-3162.0,0.00019457,2]
[401493742,1768267844586,-303.10001603,0.00019467,2]
[401493744,1768267844594,-151.0,0.00019472,2]
[401493746,1768267844604,-728.0,0.0001959,2]
[401493748,1768267844614,-728.0,0.0001963,2]
[401493751,1768267844625,-303.10001603,0.00019656,2]
[401493752,1768267844634,-728.0,0.00019694,2]
[401493754,1768267844643,-2809.693971,0.00019699,2]
[401493756,1768267844653,-159.91,0.000197,2]
[401493758,1768267844662,-250.0,0.00019726,2]
[401493760,1768267844672,-162.0,0.00019742,2]
[401493761,1768267844682,-507127.55301976,0.00019836,2]
[401493763,1768267844691,-197.225983,0.00019836,2]
[401493765,1768267844700,-454.65002405,0.00019845,4]
[401493767,1768267844710,-1000.0,0.00019846,2]
[401493768,1768267844720,-1000.0,0.00019846,2]
[401493770,1768267844730,-640.24385345,0.00019888,2]
[401493771,1768267844739,-728.0,0.00019916,2]
[401493772,1768267844749,-2809.693971,0.00019939,2]
[401493773,1768267844760,-151.0,0.00019977,2]
[401493774,1768267844769,-9862.61534867,0.0002,2]
[401493775,1768267844778,-993.0,0.0002,2]
[401493776,1768267844788,-454.65002405,0.00020034,4]
[401493777,1768267844797,-728.0,0.00020156,2]
[401493778,1768267844806,-2809.693971,0.00020165,2]
[401493779,1768267844817,-454.65002405,0.00020223,4]
[401493780,1768267844826,-728.0,0.00020252,2]
[401493781,1768267844836,-160.0,0.0002026,2]
[401493782,1768267844846,-350.0,0.00020274,2]
[401493783,1768267844855,-728.0,0.00020313,2]
[401493784,1768267844864,-728.0,0.00020314,2]
[401493785,1768267844874,-2000.0,0.00020333,7]
[401493786,1768267844883,-728.0,0.00020334,2]
[401493787,1768267844893,-728.0,0.00020351,2]
[401493788,1768267844902,-2147.0,0.00020365,2]
[401493789,1768267844911,-1366.0,0.00020365,2]
[401493791,1768267844921,-628.0,0.00020365,2]
[401493793,1768267844931,-417.0,0.00020365,2]
[401493794,1768267844940,-417.0,0.00020365,2]
[401493795,1768267844949,-715.0,0.00020365,2]
[401493796,1768267844959,-197.827,0.00020365,2]
[401493797,1768267844969,-2809.693971,0.00020395,2]
[401493798,1768267844979,-728.0,0.000204,2]
[401493799,1768267844988,-728.0,0.000204,2]
[401493800,1768267844997,-728.0,0.000204,2]
[401493801,1768267845007,-454.53633732,0.00020412,4]
[401493802,1768267845017,-151.0,0.00020483,2]
[401493803,1768267845026,-556.40184686,0.00020514,2]
[401493804,1768267845035,-728.0,0.0002072,2]
[401493805,1768267845045,-728.0,0.0002072,2]
[401493806,1768267845055,-728.0,0.0002072,2]
[401493808,1768267845064,-204.549,0.0002072,2]
[401493810,1768267845074,-2809.693971,0.00020722,2]
[401493811,1768267845083,-450.0,0.00020822,2]
[401493813,1768267845093,-2809.693971,0.00020837,2]
[401493814,1768267845103,-471.51629035,0.000209,3]
[401493816,1768267845112,-1000.0,0.00020929,5]
[401493817,1768267845122,-300.0,0.00020982,2]
[401493820,1768267845132,-151.0,0.00020989,2]
[401493823,1768267845141,-17700.54,0.00021,2]
[401493826,1768267845151,-299.999999,0.00021,2]
[401493827,1768267845161,-2809.693971,0.00021231,2]
[401493828,1768267845170,-160.0,0.0002136,2]
[401493829,1768267845180,-728.0,0.0002136,2]
[401493830,1768267845190,-728.0,0.0002136,2]
[401493831,1768267845201,-728.0,0.0002136,2]
[401493832,1768267845210,-728.0,0.0002136,2]
[401493833,1768267845220,-728.0,0.0002136,2]
[401493834,1768267845233,-550.0,0.0002137,2]
[401493835,1768267845242,-346.0,0.00021402,2]
[401493836,1768267845252,-15951.76,0.00021404,2]
[401493837,1768267845263,-2000.0,0.00021407,7]
[401493838,1768267845272,-151.0,0.00021494,2]
[401493839,1768267845282,-47577.71,0.00021495,2]
[401493840,1768267845291,-2168.50147618,0.0002156,2]
[401493841,1768267845302,-2809.693971,0.00021574,2]
[401493842,1768267845311,-728.0,0.00021593,2]
[401493843,1768267845321,-728.0,0.0002168,2]
[401493844,1768267845331,-728.0,0.0002168,2]
[401493845,1768267845340,-728.0,0.0002168,2]
[401493846,1768267845350,-778.0,0.000217,2]
[401493847,1768267845360,-2809.6939715,0.00021737,2]
[401493848,1768267845370,-158.2,0.00021798,2]
[401493849,1768267845380,-971.51344561,0.000218,2]
[401493850,1768267845389,-2185.90525262,0.000218,2]
[401493852,1768267845399,-3886.05378244,0.000218,2]
[401493853,1768267845409,-6071.95903506,0.000218,2]
[401493854,1768267845418,-8734.87738947,0.000218,2]
[401493855,1768267845428,-242.8783614,0.00021819,2]
[401493856,1768267845437,-283.07601077,0.00021819,2]
[401493857,1768267845448,-1132.30404306,0.00021819,2]
[401493858,1768267845458,-2547.68409689,0.00021819,2]
[401493859,1768267845467,-4529.21617225,0.00021819,2]
[401493860,1768267845478,-7069.82336887,0.00021819,2]
[401493861,1768267845487,-1000.0,0.00021831,10]
[401493862,1768267845497,-1000.0,0.00021831,10]
[401493863,1768267845507,-1112.0,0.00021899,2]
[401493864,1768267845517,-268.88693948,0.000219,2]
[401493865,1768267845526,-154.168239,0.00021918,2]
[401493867,1768267845536,-151.0,0.00021918,2]
[401493869,1768267845545,-151.0,0.00021918,2]
[401493870,1768267845555,-180.522489,0.00021918,2]
[401493871,1768267845565,-180.522489,0.00021918,2]
[401493872,1768267845574,-180.522489,0.00021918,2]
[401493873,1768267845583,-180.522489,0.00021918,2]
[401493874,1768267845592,-151.0,0.00021918,2]
[401493875,1768267845603,-151.0,0.00021918,2]
[401493876,1768267845613,-227.326035,0.00021918,2]
[401493877,1768267845623,-151.0,0.00021918,2]
[401493878,1768267845632,-151.0,0.00021918,2]
[401493879,1768267845641,-151.0,0.00021918,2]
[401493880,1768267845651,-151.0,0.00021918,2]
[401493881,1768267845662,-151.0,0.00021918,2]
[401493882,1768267845671,-236.294169,0.00021918,2]
[401493883,1768267845681,-165.044852,0.00021918,2]
[401493884,1768267845691,-151.0,0.00021918,2]
[401493885,1768267845701,-151.826455,0.00021918,2]
[401493886,1768267845712,-200.0,0.00021918,2]
[401493887,1768267845721,-650.0,0.00021918,2]
[401493888,1768267845731,-67671.3982605,0.00021993,2]
[401493889,1768267845740,-586019.5015252,0.00022,2]
[401493890,1768267845871,-14340.6923937,0.00022,2]
[401493891,1768267845909,-529.55716524,0.00020436,2]
[401493896,1768267847319,-134.37571078,0.00020436,2]
[401493897,1768267847329,-812.26987347,0.00020984,2]
[401493898,1768267847338,-2823.49163081,0.00022,2]
[401493899,1768267847461,-311.40920238,0.00014439,2]
[401493900,1768267847472,-1606.25746429,0.00022,2]
[401493901,1768267856881,150.58882276,0.00030136,120]
[401493902,1768267861198,160.86696141,0.00030136,120]
[401493903,1768267891871,176.51397948,0.00030136,120]
[401493904,1768267924660,159.75355777,0.00030136,120]
[401493905,1768267937677,500.0,0.00030136,120]
[401493906,1768267937925,175.57337969,0.00030136,120]
[401493908,1768267947761,265.4933776,0.00030136,120]
[401493909,1768267949458,301.87070964,0.00030136,120]
[401493910,1768267954054,267.2764791,0.00023457,41]
[401493911,1768267961911,210.91329305,0.00030136,120]
[401493912,1768267973923,298.87146929,0.00030136,120]
[401493914,1768267983812,500.0,0.00030136,120]
[401493915,1768267984082,500.0,0.00030136,120]
[401493916,1768267984359,222.0575929,0.00030136,120]
[401493917,1768267984394,360.79468148,0.00030136,120]
[401493918,1768267994710,243.47739119,0.00030136,120]
[401493919,1768268008943,406.93342492,0.00030136,120]
[401493920,1768268017422,238.94760569,0.00030136,120]
[401493921,1768268019252,275.36024409,0.00030136,120]
[401493922,1768268040371,160.11405795,0.00030136,120]
[401493923,1768268058881,155.51639412,0.00030136,120]
[401493924,1768268133933,174.81752216,0.00030136,120]
[401493925,1768268229785,50000.0,0.00030136,120]
[401493926,1768268247724,155.29115523,0.00030136,120]
[401493928,1768268361250,30000.0,0.00030136,120]
[401493929,1768268594022,505.63373788,0.00030136,120]
[401493931,1768269008126,150.80505235,0.00030136,120]
[401493988,1768269038149,-299.32415678,0.00010285,2]
[401493989,1768269038269,-564.0,0.00010285,2]
[401493990,1768269038280,-300.0,0.00010385,2]
[401493991,1768269038291,-300.0,0.00010385,2]
[401493992,1768269038301,-562.67154868,0.00010385,2]
[401493993,1768269038314,-637.32845132,0.00010385,2]
[401493994,1768269038324,-300.0,0.00010386,2]
[401493995,1768269038333,-300.0,0.00010386,2]
[401493996,1768269038343,-300.0,0.00010386,2]
[401493997,1768269038352,-300.0,0.00010386,2]
[401493998,1768269038362,-300.0,0.00010386,2]
[401493999,1768269038372,-300.0,0.00010386,2]
[401494000,1768269038382,-300.0,0.00010386,2]
[401494001,1768269038392,-300.0,0.00010386,2]
[401494002,1768269038401,-300.0,0.00010386,2]
[401494003,1768269038414,-300.0,0.00010386,2]
[401494004,1768269038424,-300.0,0.00010386,2]
[401494005,1768269038434,-300.0,0.00010386,2]
[401494006,1768269038444,-300.0,0.00010386,2]
[401494007,1768269038454,-300.0,0.00010386,2]
[401494008,1768269038464,-300.0,0.00010386,2]
[401494009,1768269038474,-600.0,0.00010386,2]
[401494010,1768269038483,-1881.43275536,0.00010386,2]
[401494011,1768269038493,-10000.0,0.00011038,2]
[401494012,1768269038503,-420.0,0.00011419,2]
[401494013,1768269038512,-720.0,0.00011424,2]
[401494014,1768269038522,-1212.0,0.00011424,2]
[401494015,1768269038531,-353.20250501,0.00012285,2]
[401494016,1768269038541,-587.0,0.00012556,2]
[401494017,1768269038550,-864.0,0.00012567,2]
[401494018,1768269038560,-1033.87912665,0.00012615,2]
[401494019,1768269038570,-205.426,0.00012615,2]
[401494020,1768269038580,-500.0,0.00012894,2]
[401494021,1768269038589,-237.23930593,0.00012894,2]
[401494022,1768269038599,-500.0,0.00012896,2]
[401494023,1768269038608,-500.0,0.00012896,2]
[401494024,1768269038618,-28643.5568086,0.0001299,2]
[401494025,1768269038628,-500.0,0.00013031,2]
[401494026,1768269038638,-500.0,0.00013033,2]
[401494027,1768269038647,-263.89076576,0.00013033,2]
[401494028,1768269038657,-500.0,0.00013033,2]
[401494029,1768269038667,-425.64625814,0.00013072,2]
[401494030,1768269038677,-425.64625814,0.00013079,2]
[401494031,1768269038686,-425.64625814,0.00013086,2]
[401494032,1768269038696,-425.64625814,0.00013093,2]
[401494033,1768269038705,-151.0,0.000131,2]
[401494034,1768269038714,-151.0,0.000131,2]
[401494035,1768269038723,-151.0,0.000131,2]
[401494036,1768269038733,-151.0,0.000131,2]
[401494037,1768269038742,-151.0,0.000131,2]
[401494038,1768269038752,-425.64625814,0.000131,2]
[401494039,1768269038762,-327.49391201,0.00013165,2]
[401494040,1768269038771,-500.0,0.00013165,2]
[401494041,1768269038780,-500.0,0.00013165,2]
[401494042,1768269038790,-190.25235154,0.00013165,2]
[401494043,1768269038801,-500.0,0.00013165,2]
[401494044,1768269038811,-500.0,0.00013165,2]
[401494045,1768269038822,-500.0,0.00013165,2]
[401494046,1768269038831,-500.0,0.00013165,2]
[401494047,1768269038840,-500.0,0.00013165,2]
[401494048,1768269038850,-500.0,0.00013165,2]
[401494049,1768269038860,-500.0,0.00013165,2]
[401494050,1768269038869,-458.56417334,0.00013165,2]
[401494051,1768269038879,-500.0,0.00013165,2]
[401494052,1768269038888,-500.0,0.00013165,2]
[401494053,1768269038898,-500.0,0.00013165,2]
[401494054,1768269038908,-500.0,0.00013165,2]
[401494055,1768269038918,-500.0,0.00013165,2]
[401494056,1768269038927,-500.0,0.00013165,2]
[401494057,1768269038936,-500.0,0.00013165,2]
[401494058,1768269038946,-500.0,0.00013165,2]
[401494059,1768269038957,-500.0,0.00013165,2]
[401494060,1768269038966,-500.0,0.00013165,2]
[401494061,1768269038976,-500.0,0.00013165,2]
[401494062,1768269038989,-500.0,0.00013165,2]
[401494063,1768269038998,-500.0,0.00013165,2]
[401494064,1768269039009,-500.0,0.00013165,2]
[401494065,1768269039021,-224.48071161,0.00013165,2]
[401494066,1768269039031,-500.0,0.00013165,2]
[401494067,1768269039040,-500.0,0.00013165,2]
[401494068,1768269039050,-500.0,0.00013165,2]
[401494069,1768269039060,-500.0,0.00013165,2]
[401494070,1768269039069,-500.0,0.00013165,2]
[401494071,1768269039079,-500.0,0.00013165,2]
[401494072,1768269039088,-500.0,0.00013165,2]
[401494073,1768269039097,-500.0,0.00013165,2]
[401494074,1768269039107,-500.0,0.00013165,2]
[401494075,1768269039116,-251.05493494,0.00013165,2]
[401494076,1768269039127,-500.0,0.00013165,2]
[401494077,1768269039136,-500.0,0.00013165,2]
[401494078,1768269039146,-500.0,0.00013165,2]
[401494079,1768269039156,-500.0,0.00013165,2]
[401494080,1768269039166,-500.0,0.00013165,2]
[401494081,1768269039175,-500.0,0.00013165,2]
[401494082,1768269039184,-500.0,0.00013165,2]
[401494083,1768269039194,-500.0,0.00013165,2]
[401494084,1768269039203,-500.0,0.00013165,2]
[401494085,1768269039213,-500.0,0.00013165,2]
[401494086,1768269039222,-500.0,0.00013165,2]
[401494087,1768269039231,-500.0,0.00013165,2]
[401494088,1768269039240,-500.0,0.00013165,2]
[401494089,1768269039249,-500.0,0.00013165,2]
[401494090,1768269039260,-500.0,0.00013165,2]
[401494091,1768269039270,-500.0,0.00013165,2]
[401494092,1768269039279,-500.0,0.00013165,2]
[401494093,1768269039288,-314.61866651,0.00013165,2]
[401494094,1768269039297,-500.0,0.00013165,2]
[401494095,1768269039306,-500.0,0.00013165,2]
[401494096,1768269039315,-500.0,0.00013165,2]
[401494097,1768269039324,-500.0,0.00013165,2]
[401494098,1768269039333,-500.0,0.00013165,2]
[401494099,1768269039344,-500.0,0.00013165,2]
[401494100,1768269039352,-500.0,0.00013165,2]
[401494101,1768269039361,-500.0,0.00013165,2]
[401494102,1768269039370,-215.14682625,0.00013165,2]
[401494103,1768269039380,-513.12655738,0.00013168,2]
[401494104,1768269039389,-243.68980212,0.00013169,2]
[401494105,1768269039399,-153.70982773,0.00013169,2]
[401494106,1768269039408,-515.33881049,0.0001317,2]
[401494107,1768269039417,-151.92792732,0.0001317,2]
[401494108,1768269039427,-151.83334327,0.0001317,2]
[401494109,1768269039436,-500.0,0.0001317,2]
[401494110,1768269039445,-500.0,0.00013172,2]
[401494111,1768269039455,-500.0,0.00013172,2]
[401494112,1768269039464,-180.40896497,0.00013172,2]
[401494113,1768269039473,-464.46449655,0.00013172,2]
[401494114,1768269039484,-500.0,0.00013172,2]
[401494115,1768269039494,-500.0,0.00013172,2]
[401494116,1768269039503,-500.0,0.00013172,2]
[401494117,1768269039512,-500.0,0.00013172,2]
[401494118,1768269039522,-500.0,0.00013172,2]
[401494119,1768269039532,-500.0,0.00013172,2]
[401494120,1768269039541,-500.0,0.00013172,2]
[401494121,1768269039551,-500.0,0.00013172,2]
[401494123,1768269039561,-500.0,0.00013172,2]
[401494125,1768269039571,-500.0,0.00013172,2]
[401494127,1768269039580,-500.0,0.00013172,2]
[401494129,1768269039589,-500.0,0.00013172,2]
[401494131,1768269039599,-600.0,0.00013172,2]
[401494132,1768269039608,-500.0,0.00013172,2]
[401494133,1768269039618,-377.71077027,0.00013172,2]
[401494134,1768269039627,-500.0,0.00013172,2]
[401494135,1768269039636,-1000000.0,0.00013173,2]
[401494136,1768269039646,-151.0,0.000132,2]
[401494137,1768269039655,-151.0,0.000132,2]
[401494138,1768269039665,-151.0,0.000132,2]
[401494139,1768269039674,-151.0,0.000132,2]
[401494140,1768269039683,-151.0,0.000132,2]
[401494141,1768269039693,-500.0,0.00013273,2]
[401494142,1768269039702,-500.0,0.00013273,2]
[401494143,1768269039711,-500.0,0.00013273,2]
[401494144,1768269039720,-500.0,0.00013273,2]
[401494145,1768269039730,-500.0,0.00013273,2]
[401494146,1768269039739,-500.0,0.00013273,2]
[401494147,1768269039748,-500.0,0.00013273,2]
[401494148,1768269039757,-500.0,0.00013273,2]
[401494149,1768269039766,-500.0,0.00013273,2]
[401494150,1768269039775,-500.0,0.00013273,2]
[401494151,1768269039784,-500.0,0.00013273,2]
[401494152,1768269039793,-500.0,0.00013273,2]
[401494153,1768269039802,-500.0,0.00013273,2]
[401494154,1768269039811,-500.0,0.00013273,2]
[401494155,1768269039820,-500.0,0.00013273,2]
[401494156,1768269039830,-500.0,0.00013273,2]
[401494157,1768269039839,-500.35980856,0.00013273,2]
[401494158,1768269039847,-500.33229087,0.00013273,2]
[401494159,1768269039856,-500.0,0.00013273,2]
[401494160,1768269039865,-500.0,0.00013273,2]
[401494161,1768269039875,-500.0,0.00013273,2]
[401494162,1768269039884,-500.0,0.00013273,2]
[401494163,1768269039893,-500.0,0.00013273,2]
[401494164,1768269039902,-500.0,0.00013273,2]
[401494165,1768269039911,-500.0,0.00013273,2]
[401494166,1768269039920,-500.0,0.00013273,2]
[401494167,1768269039929,-500.0,0.00013273,2]
[401494168,1768269039938,-588.05171808,0.00013273,2]
[401494169,1768269039947,-500.47876979,0.00013273,2]
[401494170,1768269039955,-500.0,0.00013273,2]
[401494171,1768269039965,-500.0,0.00013273,2]
[401494172,1768269039974,-500.0,0.00013273,2]
[401494173,1768269039986,-401.02939907,0.00013273,2]
[401494174,1768269039995,-500.0,0.00013273,2]
[401494175,1768269040003,-500.97359104,0.00013273,2]
[401494176,1768269040012,-500.0,0.00013273,2]
[401494177,1768269040021,-500.0,0.00013273,2]
[401494178,1768269040030,-500.0,0.00013273,2]
[401494179,1768269040039,-500.0,0.00013273,2]
[401494180,1768269040048,-500.0,0.00013273,2]
[401494181,1768269040057,-500.0,0.00013273,2]
[401494182,1768269040067,-500.0,0.00013273,2]
[401494184,1768269040076,-500.0,0.00013273,2]
[401494185,1768269040085,-500.0,0.00013273,2]
[401494187,1768269040094,-151.27013683,0.00013307,2]
[401494189,1768269040103,-462.2385433,0.00013307,2]
[401494191,1768269040112,-165.04081597,0.00013444,2]
[401494193,1768269040121,-152.47392914,0.00013444,2]
[401494195,1768269040130,-231.4642444,0.00013581,2]
[401494197,1768269040139,-300.0,0.00013673,2]
[401494199,1768269040148,-500.0,0.00013698,2]
[401494201,1768269040157,-500.0,0.00013698,2]
[401494202,1768269040166,-500.0,0.00013698,2]
[401494204,1768269040175,-500.0,0.00013698,2]
[401494206,1768269040184,-500.0,0.00013698,2]
[401494208,1768269040194,-500.0,0.00013698,2]
[401494210,1768269040203,-500.0,0.00013698,2]
[401494212,1768269040213,-500.0,0.00013698,2]
[401494214,1768269040222,-500.0,0.00013698,2]
[401494216,1768269040231,-500.0,0.00013698,2]
[401494218,1768269040240,-500.0,0.00013698,2]
[401494220,1768269040249,-500.0,0.00013698,2]
[401494222,1768269040258,-500.0,0.00013698,2]
[401494224,1768269040268,-500.0,0.00013698,2]
[401494226,1768269040278,-500.0,0.00013698,2]
[401494228,1768269040287,-505.24717796,0.00013698,2]
[401494230,1768269040296,-17382.1501575,0.00013699,2]
[401494232,1768269040305,-500.0,0.00013699,2]
[401494234,1768269040315,-500.0,0.00013699,2]
[401494236,1768269040324,-500.0,0.00013699,2]
[401494239,1768269040333,-500.0,0.00013699,2]
[401494240,1768269040342,-298.89998035,0.00013699,2]
[401494242,1768269040351,-500.0,0.00013699,2]
[401494244,1768269040360,-500.0,0.00013699,2]
[401494246,1768269040369,-500.0,0.00013699,2]
[401494248,1768269040378,-500.0,0.00013699,2]
[401494250,1768269040388,-434.45562234,0.00013699,2]
[401494252,1768269040398,-500.0,0.00013699,2]
[401494254,1768269040408,-500.0,0.00013699,2]
[401494256,1768269040417,-500.32741259,0.00013699,2]
[401494258,1768269040426,-411.20049965,0.00013699,2]
[401494260,1768269040435,-610.91637181,0.00013699,2]
[401494262,1768269040445,-500.0,0.00013699,2]
[401494264,1768269040454,-500.0,0.00013699,2]
[401494266,1768269040464,-500.0,0.00013699,2]
[401494268,1768269040473,-500.0,0.00013699,2]
[401494270,1768269040482,-612.31425268,0.00013699,2]
[401494272,1768269040491,-500.0,0.00013699,2]
[401494274,1768269040501,-500.0,0.00013699,2]
[401494276,1768269040510,-500.0,0.00013699,2]
[401494278,1768269040519,-160.71798276,0.00013699,2]
[401494280,1768269040528,-500.0,0.00013699,2]
[401494282,1768269040538,-500.0,0.00013699,2]
[401494284,1768269040547,-500.33229586,0.00013699,2]
[401494286,1768269040556,-500.0,0.00013699,2]
[401494288,1768269040566,-500.0,0.00013699,2]
[401494300,1768269040668,-500.0,0.00013699,2]
[401494302,1768269040678,-500.0,0.00013699,2]
[401494304,1768269040687,-500.0,0.00013699,2]
[401494306,1768269040696,-500.0,0.00013699,2]
[401494308,1768269040705,-500.0,0.00013699,2]
[401494310,1768269040715,-227.1525335,0.00013699,2]
[401494312,1768269040725,-502.80003889,0.00013699,2]
[401494314,1768269040734,-500.0,0.00013699,2]
[401494316,1768269040743,-500.0,0.00013699,2]
[401494318,1768269040752,-461.30308829,0.00013699,2]
[401494320,1768269040761,-500.0,0.00013699,2]
[401494322,1768269040771,-500.0,0.00013699,2]
[401494324,1768269040780,-500.26011474,0.00013699,2]
[401494326,1768269040789,-500.0,0.00013699,2]
[401494328,1768269040798,-500.0,0.00013699,2]
[401494330,1768269040807,-296.2401009,0.00013699,2]
[401494332,1768269040816,-500.0,0.00013699,2]
[401494334,1768269040825,-500.0,0.00013699,2]
[401494336,1768269040834,-500.0,0.00013699,2]
[401494338,1768269040843,-500.0,0.00013699,2]
[401494340,1768269040851,-159.67447117,0.00013699,2]
[401494342,1768269040860,-500.53205466,0.00013699,2]
[401494344,1768269040869,-500.0,0.00013699,2]
[401494346,1768269040879,-500.0,0.00013699,2]
[401494348,1768269040888,-500.0,0.00013699,2]
[401494350,1768269040897,-500.27924126,0.00013699,2]
[401494352,1768269040906,-500.0,0.00013699,2]
[401494354,1768269040915,-500.0,0.00013699,2]
[401494356,1768269040924,-500.0,0.00013699,2]
[401494358,1768269040933,-500.0,0.00013699,2]
[401494360,1768269040942,-442.19105582,0.00013699,2]
[401494362,1768269040951,-500.0,0.00013699,2]
[401494364,1768269040960,-500.0,0.00013699,2]
[401494366,1768269040969,-500.0,0.00013699,2]
[401494368,1768269040983,-500.0,0.00013699,2]
[401494370,1768269040992,-313.26668117,0.00013699,2]
[401494372,1768269041002,-500.0,0.00013699,2]
[401494374,1768269041012,-500.0,0.00013699,2]
[401494376,1768269041022,-500.0,0.00013699,2]
[401494378,1768269041031,-500.0,0.00013699,2]
[401494380,1768269041040,-501.77596466,0.00013699,2]
[401494382,1768269041049,-500.0,0.00013699,2]
[401494384,1768269041061,-500.0,0.00013699,2]
[401494386,1768269041070,-367.67596865,0.00013699,2]
[401494388,1768269041079,-500.0,0.00013699,2]
[401494390,1768269041088,-500.0,0.00013699,2]
[401494392,1768269041097,-500.0,0.00013699,2]
[401494394,1768269041106,-201.72675896,0.00013699,2]
[401494396,1768269041116,-823.0,0.00013806,2]
[401494398,1768269041125,-1000.0,0.00013821,2]
[401494400,1768269041134,-1000.0,0.00013821,2]
[401494402,1768269041143,-1000.65920252,0.00013821,2]
[401494404,1768269041151,-1000.0,0.00013821,2]
[401494406,1768269041160,-1000.0,0.00013821,2]
[401494408,1768269041169,-1000.0,0.00013821,2]
[401494410,1768269041178,-303.88205907,0.00013821,2]
[401494412,1768269041187,-1000.0,0.00013821,2]
[401494414,1768269041196,-799.1982595,0.00013821,2]
[401494416,1768269041206,-1000.0,0.00013821,2]
[401494418,1768269041216,-1000.0,0.00013821,2]
[401494420,1768269041226,-1000.0,0.00013821,2]
[401494422,1768269041235,-1000.0,0.00013821,2]
[401494424,1768269041244,-1000.0,0.00013821,2]
[401494426,1768269041254,-958.892719,0.00013821,2]
[401494428,1768269041263,-1000.0,0.00013821,2]
[401494430,1768269041272,-1000.0,0.00013821,2]
[401494432,1768269041281,-1114.62780634,0.00013821,2]
[401494434,1768269041290,-1000.0,0.00013821,2]
[401494436,1768269041299,-1000.0,0.00013821,2]
[401494437,1768269041308,-1000.0,0.00013821,2]
[401494439,1768269041318,-1000.0,0.00013821,2]
[401494441,1768269041327,-290.80732737,0.00013821,2]
[401494443,1768269041336,-1000.0,0.00013821,2]
[401494445,1768269041345,-1000.0,0.00013821,2]
[401494447,1768269041354,-1000.0,0.00013821,2]
[401494449,1768269041364,-1000.0,0.00013821,2]
[401494452,1768269041373,-1000.0,0.00013821,2]
[401494453,1768269041382,-1000.0,0.00013821,2]
[401494455,1768269041392,-332.84054577,0.00013821,2]